Cogmind - Beta 11.1 @@@ ROGUE MODE // 2022.08.25 @ 18:35:57 Player: ILikeMonsters1890 Result: Destroyed by G-50 Soldier with Heavy Laser Performance ------------- Evolutions (1) 500 Regions Visited (5) 1000 Robots Destroyed (41) 205 Value Destroyed (1015) 1015 Prototype IDs (1) 20 Alien Tech Used (0) 0 Bonus (349) 349 TOTAL SCORE: 3089 Bonus ------- High Alert Combat Kills 49 Aligned with FarCom 300 Cogmind --------- Core Integrity 0/400 Matter 286/300 Energy 86/100 System Corruption 9% Temperature Cool (9) Movement Treading (160) Location -8/Mines Parts ------- > --- POWER (1) -------- (None) > --- PROPULSION (3) --- Light Treads Light Treads Compact Wheel > --- UTILITY (3) ------ Improved Heat Sink Medium Storage Unit > --- WEAPON (2) ------- Particle Gun Field Lobotomy Kit > --- INVENTORY (10) --- Light Ion Engine Light Nuclear Core Carbon-fiber Leg Improved Heat Sink Signal Interpreter Small Laser Heavy Laser Light Assault Rifle Light Assault Rifle Light Assault Rifle Peak State ------------ > --- POWER ------------ Ion Engine > --- PROPULSION ------- Compact Wheel Armored Wheel Armored Wheel > --- UTILITY ---------- Cooling System Medium Storage Unit Light Armor Plating > --- WEAPON ----------- Small Laser Field Lobotomy Kit > --- INVENTORY -------- Reinforced Ion Engine Light Nuclear Core Light Treads Light Treads Compact Wheel Improved Heat Sink Signal Interpreter Flail [Rating: 22] Favorites ----------- Power Ion Engine Engine Ion Engine Propulsion Armored Wheel Treads Light Treads Wheel Armored Wheel Utility Medium Storage Unit Device Cooling System Storage Medium Storage Unit Protection Light Armor Plating Weapon Flail Energy Gun Particle Gun Ballistic Gun Assault Rifle Special Weapon Field Lobotomy Kit Impact Weapon Flail Build | -11 -10 -9 -9 -9 -8 ------- Run | Scr Mat Mat Min Exi Min Slots Evolved 2 | . . 2 . . . Power . | . . . . . . Propulsion 1 | . . 1 . . . Utility 1 | . . 1 . . . Weapon . | . . . . . . Parts Attached 38 | 6 7 13 . 2 10 Power 6 | 1 2 2 . . 1 Engine 6 | 1 2 2 . . 1 Core . | . . . . . . Reactor . | . . . . . . Propulsion 11 | 2 2 3 . . 4 Treads 2 | . . . . . 2 Leg . | . . . . . . Wheel 9 | 2 2 3 . . 2 Hover . | . . . . . . Flight . | . . . . . . Utility 9 | 1 2 5 . . 1 Device 3 | . . 2 . . 1 Storage 2 | 1 1 . . . . Processor . | . . . . . . Hackware . | . . . . . . Protection 4 | . 1 3 . . . Artifact . | . . . . . . Weapon 12 | 2 1 3 . 2 4 Energy Gun 6 | 1 1 2 . . 2 Energy Cannon . | . . . . . . Ballistic Gun 2 | 1 . . . . 1 Ballistic Cannon . | . . . . . . Launcher . | . . . . . . Special Weapon 2 | . . . . 1 1 Impact Weapon 2 | . . 1 . 1 . Slashing Weapon . | . . . . . . Piercing Weapon . | . . . . . . Special Melee Weapon . | . . . . . . Unidentified Prototypes 1 | . . . . 1 . Corrupted Parts 1 | . . . . . 1 System Corruption 8 | . . . . . 8 Parts Lost 18 | . . 9 . . 9 Power 3 | . . 1 . . 2 Propulsion 6 | . . 2 . . 4 Utility 5 | . . 3 . . 2 Weapon 4 | . . 3 . . 1 Highest Loss Streak 4 | . . 3 . . 4 To Critical Strikes 1 | . . 1 . . . Average Slot Usage (%) 93 | . 99 90 100 100 81 Engine 11 | . 14 11 11 11 11 Treads 3 | . . . . . 16 Wheel 26 | . 28 32 33 33 11 Device 7 | . . 10 11 11 9 Storage 11 | . 14 11 11 11 11 Protection 9 | . 13 10 11 11 . Energy Gun 12 | . 14 4 11 11 18 Ballistic Gun 4 | . 14 1 . . 2 Impact Weapon 5 | . . 7 11 11 . Naked Turns . | . . . . . . Heaviest Build 28 | 14 25 26 23 23 28 Greatest Support 40 | 26 28 40 40 40 40 Greatest Overweight (x) 1 | . 1 . . . . Average Overweight (x) . | . . . . . . Largest Inventory Capacity 10 | 8 10 10 10 10 10 Average Capacity 9 | 7 9 10 10 10 10 Most Carried 10 | 6 10 9 7 8 10 Average Carried 7 | 3 8 6 7 7 8 Final Capacity 10 | 8 10 10 10 10 10 Final Carried 10 | 6 10 7 7 8 10 Class Distribution -------------------- 53% | Scavenger-Mutant 46% | Mutant Dominant Class ---------------- Mutant | -10/Materials Mutant | -9/Materials Scavenger-Mutant | -9/Mines Scavenger-Mutant | -9/Exiles Scavenger-Mutant | -8/Mines Resources | -11 -10 -9 -9 -9 -8 ----------- Run | Scr Mat Mat Min Exi Min Matter Collected 620 | 236 166 121 . . 97 Remotely . | . . . . . . Salvage Created 1319 | . 357 671 . . 291 Parts 54 | . 18 18 . . 18 Haulers Intercepted 1 | . 1 . . . . Recyclers Shooed 3 | . 1 1 . . 1 Parts Field Recycled . | . . . . . . Retrieved Matter . | . . . . . . Parts Self-Destructed . | . . . . . . Prevented . | . . . . . . Kills | -11 -10 -9 -9 -9 -8 ------- Run | Scr Mat Mat Min Exi Min Combat Hostiles Destroyed 36 | . 9 17 . . 10 Melee 7 | . . 5 . . 2 Guns 19 | . 9 3 . . 7 Classes Destroyed 8 | . 3 5 . . . Builder 1 | . . 1 . . . Hauler 1 | . 1 . . . . Recycler 2 | . . 1 . . 1 Watcher 1 | . . 1 . . . Swarmer 14 | . 3 4 . . 7 Grunt 17 | . 6 8 . . 3 Brawler 2 | . . 2 . . . Sentry 3 | . . 3 . . . Best Kill Streak 5 | . 3 5 . . 4 Combat Bots Only 4 | . 3 4 . . 4 Max Kills in Single Turn 2 | . 1 1 . . 2 Gunslinging 1 | . . . . . 1 Exploded . | . . . . . . Melee 1 | . . 1 . . 1 Uniques/NPCs Destroyed . | . . . . . . Combat | -11 -10 -9 -9 -9 -8 -------- Run | Scr Mat Mat Min Exi Min Damage Taken 2346 | . 205 1320 . . 821 Core 418 | . 14 214 . . 190 Absorbed by Shields . | . . . . . . Core Remaining (%) 97 | 100 94 . . . . Volleys Fired 80 | . 24 23 . . 33 Largest 2 | . 2 2 . . 2 Hottest 134 | . 85 85 . . 134 Shots Fired 138 | . 48 33 . . 57 Gun 137 | . 48 33 . . 56 Cannon . | . . . . . . Launcher . | . . . . . . Special 1 | . . . . . 1 Kinetic 50 | . 24 10 . . 16 Thermal 87 | . 24 23 . . 40 Explosive . | . . . . . . Electromagnetic . | . . . . . . Robot Hit Streak 26 | . 9 5 . . 26 Robot Miss Streak 6 | . 6 4 . . 2 Penetration Max . | . . . . . . Secondary Targets 1 | . . . . . 1 Max Gunslinging Chain 1 | . . . . . 1 Shots Hit Robots 139 | . 27 61 . . 51 Core Hits 44 | . 15 10 . . 19 Critical Kills 1 | . . . . . 1 Critical Parts Destroyed 6 | . . 6 . . . Critical Strikes 9 | . 2 6 . . 1 Burn 2 | . 2 . . . . Destroy 1 | . . . . . 1 Smash 6 | . . 6 . . . Melee Attacks 65 | . . 58 . . 7 Impact 65 | . . 58 . . 7 Slashing . | . . . . . . Piercing . | . . . . . . Sneak Attacks 6 | . . 5 . . 1 Combat Hostiles . | . . . . . . Follow-up Attacks . | . . . . . . Damage Inflicted 2914 | . 399 1810 . . 705 Guns 1205 | . 399 263 . . 543 Cannons . | . . . . . . Explosions . | . . . . . . Melee 1702 | . . 1540 . . 162 Ramming 7 | . . 7 . . . Kinetic 348 | . 157 80 . . 111 Thermal 857 | . 242 183 . . 432 Explosive . | . . . . . . Electromagnetic . | . . . . . . Impact 1702 | . . 1540 . . 162 Slashing . | . . . . . . Piercing . | . . . . . . Highest Corruption 9 | . . 1 1 1 9 Average Corruption 4 | . . 1 1 1 8 Corruption Purged . | . . . . . . Corruption Blocked . | . . . . . . Effects 19 | . . 1 . 2 16 Message Errors 7 | . . 1 . 2 4 Matter Fused 3 | . . . . . 3 Energy Discharges 2 | . . . . . 2 Data Loss (minor) 4 | . . . . . 4 Misfires 1 | . . . . . 1 Weapon Failures 2 | . . . . . 2 Overload Shots . | . . . . . . Overflow Damage 318 | . . 315 . . 3 Projectiles . | . . . . . . Explosions . | . . . . . . Melee 318 | . . 315 . . 3 Knockbacks 3 | . . 2 . . 1 Impact 3 | . . 2 . . 1 Kinetic . | . . . . . . Secondary . | . . . . . . Self-Inflicted Damage 3 | . . 3 . . . Shots . | . . . . . . Rammed 1 | . . 1 . . . Targets Rammed 1 | . . 1 . . . Kicked . | . . . . . . Crushed . | . . . . . . Highest Temperature 313 | . 313 23 . . 231 Average Temperature 101 | . 114 18 . . 82 Received Heat Transfer 561 | . 60 258 . . 243 Siege Activations . | . . . . . . Robots Corrupted . | . . . . . . Combat Hostiles . | . . . . . . Parts Fried 14 | . . 12 . . 2 Impact Corruptions 17 | . . 16 . . 1 Robots Melted . | . . . . . . Combat Hostiles . | . . . . . . Parts Melted 2 | . 1 . . . 1 Heat Transferred 2091 | . 703 444 . . 944 Parts Sabotaged . | . . . . . . Parts Stolen . | . . . . . . Parts Stripped . | . . . . . . Power Chain Reactions . | . . . . . . Missiles Intercepted . | . . . . . . Alert | -11 -10 -9 -9 -9 -8 ------- Run | Scr Mat Mat Min Exi Min Peak Influence 512 | . 150 512 133 . 185 Initial 133 | . . 24 133 . . Average 118 | . 41 238 133 . 105 Maximum Alert Level 2 | . . 2 . . . Low Security (%) 84 | 100 100 48 100 . 100 Level 1 8 | . . 29 . . . Level 2 6 | . . 22 . . . Level 3 . | . . . . . . Level 4 . | . . . . . . Level 5 . | . . . . . . High Security . | . . . . . . Max Security . | . . . . . . Squads Dispatched 2 | . . 2 . . . Investigation 2 | . . 2 . . . Extermination . | . . . . . . Reinforcement . | . . . . . . Assault . | . . . . . . Garrison . | . . . . . . Intercept . | . . . . . . Searches Triggered . | . . . . . . Construction Impeded . | . . . . . . Haulers Reinforced . | . . . . . . Active Scanning Responses . | . . . . . . Cargo Convoy Interrupts . | . . . . . . Stealth | -11 -10 -9 -9 -9 -8 --------- Run | Scr Mat Mat Min Exi Min Distress Signals 4 | . 1 3 . . . Communications Jammed . | . . . . . . Distress Signals . | . . . . . . Times Spotted 50 | . 10 26 . . 14 Peak Tracking Total 7 | . 3 7 . . 4 Tactical Retreats 1 | . . 1 . . . Traps | -11 -10 -9 -9 -9 -8 ------- Run | Scr Mat Mat Min Exi Min Traps Triggered . | . . . . . . Indirectly . | . . . . . . Trap Hack Attempts . | . . . . . . Triggered . | . . . . . . Disarmed . | . . . . . . Reprogrammed . | . . . . . . Reused . | . . . . . . Traps Extracted . | . . . . . . Installed . | . . . . . . Triggered . | . . . . . . Machines | -11 -10 -9 -9 -9 -8 ---------- Run | Scr Mat Mat Min Exi Min Machines Disabled . | . . . . . . Max in Single Turn . | . . . . . . Machines Sabotaged . | . . . . . . Garrisons Compromised . | . . . . . . Overloaded Fab Kills . | . . . . . . Hacking | -11 -10 -9 -9 -9 -8 --------- Run | Scr Mat Mat Min Exi Min Machines Accessed 8 | . 3 2 . 3 . Terminals 5 | . 3 2 . . . Fabricators . | . . . . . . Repair Stations . | . . . . . . Recycling Units . | . . . . . . Scanalyzers . | . . . . . . Garrison Access . | . . . . . . Total Hacks 23 | . 9 6 . 8 . Successful 11 | . 2 1 . 8 . Failed 11 | . 6 5 . . . Catastrophic 3 | . 1 2 . . . Database Lockouts 1 | . 1 . . . . Manual 14 | . 7 6 . 1 . Terminals 15 | . 9 6 . . . Fabricators . | . . . . . . Repair Stations . | . . . . . . Recycling Units . | . . . . . . Scanalyzers . | . . . . . . Garrison Access . | . . . . . . Terminal Hacks 11 | . 2 1 . 8 . Record 8 | . . . . 8 . Robot Analysis 2 | . 1 1 . . . Dispatch Records 1 | . 1 . . . . Fabricator Hacks . | . . . . . . Repair Station Hacks . | . . . . . . Recycling Unit Hacks . | . . . . . . Scanalyzer . | . . . . . . Garrison Access Hacks . | . . . . . . Unauthorized Hacks . | . . . . . . Terminals . | . . . . . . Fabricators . | . . . . . . Repair Stations . | . . . . . . Recycling Units . | . . . . . . Scanalyzers . | . . . . . . Garrison Access . | . . . . . . Data Cores Recovered . | . . . . . . Used . | . . . . . . Hacking Detections 5 | . 3 2 . . . Full Trace Events 3 | . 1 2 . . . Feedback Events . | . . . . . . Feedback Blocked . | . . . . . . Robot Schematics Acquired . | . . . . . . Robots Built . | . . . . . . Authchips . | . . . . . . Time . | . . . . . . Total Robot Build Rating . | . . . . . . Part Schematics Acquired . | . . . . . . Parts Built . | . . . . . . Authchips . | . . . . . . Time . | . . . . . . Total Part Build Rating . | . . . . . . Parts Repaired . | . . . . . . Time . | . . . . . . Parts Recycled . | . . . . . . Recycled Matter . | . . . . . . Retrieved Matter . | . . . . . . Retrieved Components . | . . . . . . Parts Scanalyzed . | . . . . . . Part Schematics Acquired . | . . . . . . Parts Damaged . | . . . . . . Bothacking | -11 -10 -9 -9 -9 -8 ------------ Run | Scr Mat Mat Min Exi Min Used RIF Installer . | . . . . . . Robots Hacked . | . . . . . . Non-combat . | . . . . . . Combat . | . . . . . . Robot Hacks Applied . | . . . . . . Relay Couplers Released . | . . . . . . Fabnet Peak Effective % . | . . . . . . Robots Rewired . | . . . . . . Allies Hacked . | . . . . . . Hacks Repelled . | . . . . . . Allies | -11 -10 -9 -9 -9 -8 -------- Run | Scr Mat Mat Min Exi Min Total Allies 1 | . . . . . 1 Largest Group . | . . . . . . Highest-Rated Group . | . . . . . . Highest-Rated Ally . | . . . . . . Total Orders . | . . . . . . Ally Attacks 1 | . . . . . 1 Total Damage 17 | . . . . . 17 Kills . | . . . . . . Allies Corrupted . | . . . . . . Allies Melted . | . . . . . . Field Lobotomies 1 | . . . . . 1 Intel | -11 -10 -9 -9 -9 -8 ------- Run | Scr Mat Mat Min Exi Min Robot Analysis Total 2 | . 1 1 . . . Derelict Logs Recovered . | . . . . . . Drone Launches . | . . . . . . Drone Recoveries . | . . . . . . Exploration | -11 -10 -9 -9 -9 -8 ------------- Run | Scr Mat Mat Min Exi Min Turns Passed 2023 | 58 500 416 11 602 436 Spaces Moved 1444 | 48 356 185 12 643 200 Core 7 | 7 . . . . . Treads 166 | . . . . . 166 Legs . | . . . . . . Wheels 1271 | 41 356 185 12 643 34 Hover . | . . . . . . Flight . | . . . . . . Fastest Speed 50 | 50 90 90 93 93 100 Average Speed 99 | 84 90 90 93 93 149 Slowest Speed 160 | 90 105 93 93 93 160 Overloaded Moves . | . . . . . . Propulsion Burnouts . | . . . . . . Robots Hopped . | . . . . . . Cave-ins Triggered . | . . . . . . Exploration Rate (%) 32 | 3 44 22 3 93 31 Regions Visited 5 Branch Regions 3 Pre-discovered Areas . | . . . . . . Known Exits Taken . | . . . . . . Unknown Exits Taken 5 | 1 1 1 1 1 . Scrap Searched . | . . . . . . Spaces Dug . | . . . . . . Terrain Destroyed . | . . . . . . Melee . | . . . . . . Projectile . | . . . . . . AOE . | . . . . . . Terrain Rammed . | . . . . . . Walls Destroyed . | . . . . . . Machines Disabled . | . . . . . . Actions | -11 -10 -9 -9 -9 -8 --------- Run | Scr Mat Mat Min Exi Min Total 1804 | 65 501 312 11 645 270 Wait 100 | . 68 25 . . 7 Move 1439 | 47 355 184 11 642 200 Hop . | . . . . . . Pick Up 58 | 12 26 8 . 1 11 Fast Attach . | . . . . . . Attach 25 | 6 1 11 . . 7 Detach . | . . . . . . Swap 13 | . 6 2 . 2 3 Drop 23 | . 21 . . . 2 Fire 80 | . 24 23 . . 33 Melee 65 | . . 58 . . 7 Ram 1 | . . 1 . . . Kick . | . . . . . . Crush . | . . . . . . Escape Stasis . | . . . . . . Rewire . | . . . . . . Trap . | . . . . . . Miscellaneous . | . . . . . . Route ------- -11/Scrapyard -10/Materials -9/Materials -9/Mines -9/Exiles (discovered 2 exits: [*Min x2]) -8/Mines History --------- Turn | Location | Event 30 | -11/Scrapyard | Discovered new exit (range 15) 59 | -11/Scrapyard | Entered Materials 219 | -10/Materials | Central database locked down 315 | -10/Materials | Build established: Mutant 543 | -10/Materials | Discovered new exit (range 15) 559 | -10/Materials | Entered another Materials area 559 | -9/Materials | Evolved 2 slots: Propulsion x1, Utility x1 660 | -9/Materials | Lost 3 parts (1u2w) 749 | -9/Materials | Lost 3 parts (1p1u1w) 961 | -9/Materials | Discovered new exit (range 16) 964 | -9/Materials | Core integrity fell below 50% 975 | -9/Materials | Entered Mines 980 | -9/Mines | Deemed a non-threat by the Exiles lab entrance 980 | -9/Mines | Discovered new exit (range 5) 986 | -9/Mines | Entered Exiles 1000 | -9/Exiles | Discovered new exit (range 15) 1025 | -9/Exiles | Met 8R-AWN 1039 | -9/Exiles | Met EX-HEX 1089 | -9/Exiles | Met EX-DEC 1166 | -9/Exiles | Visited The Gauntlet 1226 | -9/Exiles | Build established: Scavenger-Mutant 1312 | -9/Exiles | Discovered new exit (range 10) 1387 | -9/Exiles | Met EX-BIN 1454 | -9/Exiles | Aligned with FarCom system 1455 | -9/Exiles | Given EX-Vault access code 1477 | -9/Exiles | Opened EX-Vault 1482 | -9/Exiles | Found Prototype Special Weapon 1483 | -9/Exiles | Identified Field Lobotomy Kit 1505 | -9/Exiles | Warned to stay clear of 0b10 Research branches 1588 | -9/Exiles | Left Exiles lab with Field Lobotomy Kit 1588 | -9/Exiles | Entered Mines 1625 | -8/Mines | Lost 4 parts (1p2n1u) 1731 | -8/Mines | Lost 4 parts (2n1u1w) 1844 | -8/Mines | Core integrity fell below 20% 2022 | -8/Mines | Assimilated G-47 Trooper with FLK Orb 2024 | -8/Mines | Destroyed by G-50 Soldier with Heavy Laser Last Messages --------------- 01869_ K-01 Serf collects debris. 01869_ Acquired 5 matter. 01874_ K-01 Serf collects debris. 01874_ Acquired Flail. 01877_ K-01 Serf collects debris. 01878_ Dropped Flail. 01880_ Acquired Lgt. Assault Rifle. 01884_ System corrupted: Component data lost. 01898_ K-01 Serf collects debris. 01900_ R-06 Scavenger collects Flail. 01902_ K-01 Serf collects debris. 01923_ System corrupted: Energy discharge (-103). 01942_ System corrupted: Energy discharge (-71). 01945_ K-01 Serf collects debris. 01957_ System corrupted: Matter fused (-9). 01977_ System corrupted: Component data lost. 01988_ K-01 Serf collects debris. 01992_ YRESU EI1 GHEKAGK4QTC2J>QI 02020_ Rnf. Ion Engine destroyed. 02022_ G-47 Trooper assimilated. Map ----- +----------------------------------------------------+ | ?????????????????????????????????????????? | | ?????????????????????????????????????????? | | ?????????????????????????????????????????? | | ?????????????????????????????????????????? | | ?????????????????????????????????????????? | | ?????????????????????????????????????????? | | ?????????????????????????????????????????? | | ?????????????????????????????????????????? | | ?????????????????????????????????????????? | | ?????????????????????????????????????????? | | ?????????????????????????????????????????? | | ?????????????????????????????????????????? | | ?????????????????????????????????????????? | | ????????????????###??????????????????????? | | ????????????????# ##?????????????????????? | | ???????????????## ####??????????????????? | | ???????????????# #??????????????????? | | ???????????????# #??????????????????? | | ??????????????## ## #??????????????????? | | ??????????????# ## #??????????????????? | | ?????????????## ## #??????????????????? | | ???????????###b ### #??????????????????? | | ####??????## g####?# #??????????????????? | | ##????## ##????# #####??????????????? | | ##???# ##????# #??????????????? | | #??## g ##########@#??????????????? | | #### #??# #??????????????? | | ## #??# #??????????????? | | ##### #??# #??????????????? | | ##??# #??# #??????????????? | | % #??# #?? g ??????????????? | | ##%% #?# #?? g ??????????????? | | ## % #?# #?? ??????????????? | | ?# = ## #### ##?# ? ??????????????? | | # ########???##??#### g""??????????????? | | # ##??????????????????? ""??????????????? | | ####???????????????????? """"????????????? | | ???????????????????????? ?? ????????????? | | ???????????????????????? ???"????????????? | | ???????????????????????? ????????????????? | | ???????????????????????? ????????????????? | | ?????????????????????????????????????????? | | ?????????????????????????????????????????? | | ?????????????????????????????????????????? | | | | | | | | | | | | | +----------------------------------------------------+ Best States ------------- Heat Dissipation 50 Energy Generation 12 Energy Capacity 265 Matter Stores 300 Matter Capacity 300 Sight Range 16 Terrain Scan Density 10 Armor Coverage 150 Evasion (%) 42 Recoil Reduction 2 Item Schematics ----------------- None Robot Schematics ------------------ None Fabricated ------------ Nothing Alien Tech Used ----------------- None Achievements -------------- None Challenges ------------ None Game ------ Seed SuspensionHypervelocityFrame Manual? 0 Play Time 00:30:00 Cumulative 35.8 hours Start 2022.08.25 @ 18:03:34 End 2022.08.25 @ 18:35:57 Sessions 1 Manual Loads 0 Difficulty Rogue Special Mode None Game No. 40 Rogue 40 Adventurer 0 Explorer 0 Win Type - Total 0 Types 0/0/0/0/0/0/0/0/0 Lore% 36 Gallery% 28 Achievement% 23 Wizard Run 0 Options --------- ASCII 0 Keyboard 0 Movement Numpad Keybinds 0 Fullscreen 2 Font 18/SmallcapsGlow Map View 76x50 Tactical HUD 1 Map Filters NONE Filters NONE Steam 1 RUN: d1924b20-d95e-4d70-803d-cba95f9e268c